[Event "Late-Titled-Tuesday-Blitz-December-26-2023"]
[Site "Chess.com"]
[Date "2023.12.26"]
[Round "3"]
[White "Sacbutt"]
[Black "YurasovMat-2012"]
[Result "1/2-1/2"]
[WhiteElo "2356"]
[BlackElo "2537"]
[TimeControl "180+1"]
[EndTime "14:29:39 PST"]
[Termination "Game drawn - insufficient material"]

1. e4 {[%clk 0:03:00.9]} 1... e5 {[%clk 0:02:59.9]} 2. Nf3 {[%clk 0:03:01]} 2...
Nf6 {[%clk 0:03:00.2]} 3. Nxe5 {[%clk 0:03:00.7]} 3... d6 {[%clk 0:02:59.4]} 4.
Nf3 {[%clk 0:02:59.9]} 4... Nxe4 {[%clk 0:02:59.8]} 5. d4 {[%clk 0:03:00.5]}
5... d5 {[%clk 0:02:59.7]} 6. Bd3 {[%clk 0:03:01]} 6... Bd6 {[%clk 0:02:59.2]}
7. O-O {[%clk 0:03:01.2]} 7... O-O {[%clk 0:02:59.7]} 8. Re1 {[%clk 0:03:00.6]}
8... Bf5 {[%clk 0:02:57.4]} 9. c4 {[%clk 0:02:58.3]} 9... c6 {[%clk 0:02:57.5]}
10. Nc3 {[%clk 0:02:57.4]} 10... Nxc3 {[%clk 0:02:56.2]} 11. bxc3 {[%clk
0:02:57.4]} 11... Bxd3 {[%clk 0:02:56.9]} 12. Qxd3 {[%clk 0:02:57.4]} 12... dxc4
{[%clk 0:02:57.8]} 13. Qxc4 {[%clk 0:02:57.9]} 13... Nd7 {[%clk 0:02:57.9]} 14.
Rb1 {[%clk 0:02:56.4]} 14... Qc7 {[%clk 0:02:57.4]} 15. Bg5 {[%clk 0:02:53.8]}
15... Rfe8 {[%clk 0:02:55.6]} 16. Bh4 {[%clk 0:02:52.4]} 16... Nb6 {[%clk
0:02:52.4]} 17. Qb3 {[%clk 0:02:45.6]} 17... c5 {[%clk 0:02:44.8]} 18. Bg3
{[%clk 0:02:40.4]} 18... Bxg3 {[%clk 0:02:43.9]} 19. hxg3 {[%clk 0:02:40.2]}
19... Rac8 {[%clk 0:02:42.9]} 20. Ne5 {[%clk 0:02:31.8]} 20... h6 {[%clk
0:02:37.4]} 21. Nc4 {[%clk 0:02:18.1]} 21... Rxe1+ {[%clk 0:02:04.1]} 22. Rxe1
{[%clk 0:02:19]} 22... Nd5 {[%clk 0:02:03.7]} 23. Ne5 {[%clk 0:02:10.8]} 23...
c4 {[%clk 0:02:01.5]} 24. Qa3 {[%clk 0:01:47.6]} 24... a6 {[%clk 0:01:58]} 25.
Qb2 {[%clk 0:01:28.9]} 25... b5 {[%clk 0:01:57.4]} 26. Qc2 {[%clk 0:01:11.2]}
26... Re8 {[%clk 0:01:55]} 27. a4 {[%clk 0:01:03.9]} 27... Qa5 {[%clk
0:01:44.8]} 28. axb5 {[%clk 0:01:01]} 28... axb5 {[%clk 0:01:45.7]} 29. Rc1
{[%clk 0:00:56.1]} 29... Qc7 {[%clk 0:01:37.6]} 30. Qf5 {[%clk 0:00:51.4]} 30...
Nf6 {[%clk 0:01:36.3]} 31. Rb1 {[%clk 0:00:43.8]} 31... Rb8 {[%clk 0:01:36]} 32.
Nf3 {[%clk 0:00:41]} 32... Qa5 {[%clk 0:01:31.7]} 33. Qe5 {[%clk 0:00:38.7]}
33... Re8 {[%clk 0:01:30.8]} 34. Qxb5 {[%clk 0:00:36.3]} 34... Qxc3 {[%clk
0:01:31.1]} 35. Ne5 {[%clk 0:00:33.7]} 35... Qxd4 {[%clk 0:01:26.1]} 36. Nxc4
{[%clk 0:00:33.3]} 36... Re2 {[%clk 0:01:18.8]} 37. Ne3 {[%clk 0:00:28.3]} 37...
Qd2 {[%clk 0:00:13]} 38. Qb8+ {[%clk 0:00:22.1]} 38... Kh7 {[%clk 0:00:12.9]}
39. Qf4 {[%clk 0:00:22.3]} 39... Re1+ {[%clk 0:00:06.5]} 40. Rxe1 {[%clk
0:00:21.1]} 40... Qxe1+ {[%clk 0:00:07.4]} 41. Kh2 {[%clk 0:00:20.5]} 41... Qc1
{[%clk 0:00:07.4]} 42. Qf5+ {[%clk 0:00:18.5]} 42... Kg8 {[%clk 0:00:07.7]} 43.
Qf4 {[%clk 0:00:18.7]} 43... Qd2 {[%clk 0:00:05.9]} 44. Kg1 {[%clk 0:00:15.9]}
44... Qe1+ {[%clk 0:00:05.2]} 45. Kh2 {[%clk 0:00:16]} 45... Qe2 {[%clk
0:00:05.4]} 46. Kg1 {[%clk 0:00:14.9]} 46... Qh5 {[%clk 0:00:03.5]} 47. Qb8+
{[%clk 0:00:14.1]} 47... Kh7 {[%clk 0:00:04]} 48. Qf4 {[%clk 0:00:14.6]} 48...
Qe2 {[%clk 0:00:03]} 49. Qf5+ {[%clk 0:00:14.5]} 49... Kg8 {[%clk 0:00:03.4]}
50. Qf4 {[%clk 0:00:15.4]} 50... Qe1+ {[%clk 0:00:03.3]} 51. Kh2 {[%clk
0:00:15.3]} 51... Qa5 {[%clk 0:00:04]} 52. Qb8+ {[%clk 0:00:14.8]} 52... Kh7
{[%clk 0:00:04]} 53. Qf4 {[%clk 0:00:15.6]} 53... Qh5+ {[%clk 0:00:04.1]} 54.
Kg1 {[%clk 0:00:15.8]} 54... Qg6 {[%clk 0:00:04.5]} 55. Qf5 {[%clk 0:00:15.7]}
55... Qxf5 {[%clk 0:00:04.8]} 56. Nxf5 {[%clk 0:00:16.6]} 56... g5 {[%clk
0:00:05.5]} 57. Nd6 {[%clk 0:00:16.5]} 57... Kg6 {[%clk 0:00:06.1]} 58. f3
{[%clk 0:00:16.4]} 58... Nd5 {[%clk 0:00:05.7]} 59. g4 {[%clk 0:00:16.1]} 59...
h5 {[%clk 0:00:05.3]} 60. gxh5+ {[%clk 0:00:15.8]} 60... Kg7 {[%clk 0:00:05.1]}
61. h6+ {[%clk 0:00:15.7]} 61... Kg6 {[%clk 0:00:04.3]} 62. h7 {[%clk
0:00:15.7]} 62... Kxh7 {[%clk 0:00:04.7]} 63. Nxf7 {[%clk 0:00:15.9]} 63... Kg6
{[%clk 0:00:04.8]} 64. Nxg5 {[%clk 0:00:13.5]} 64... Kxg5 {[%clk 0:00:04.8]} 65.
Kf2 {[%clk 0:00:14.1]} 65... Nf4 {[%clk 0:00:05.2]} 66. g3 {[%clk 0:00:14.3]}
66... Ng6 {[%clk 0:00:05.6]} 67. Ke3 {[%clk 0:00:14.4]} 67... Kf5 {[%clk
0:00:05.5]} 68. Kd4 {[%clk 0:00:13.3]} 68... Ne5 {[%clk 0:00:05.1]} 69. f4
{[%clk 0:00:12.4]} 69... Ng6 {[%clk 0:00:05.2]} 70. Ke3 {[%clk 0:00:12.6]} 70...
Kg4 {[%clk 0:00:03.9]} 71. Kf2 {[%clk 0:00:12.6]} 71... Nxf4 {[%clk 0:00:03.8]}
72. gxf4 {[%clk 0:00:13.1]} 72... Kxf4 {[%clk 0:00:04.7]} 1/2-1/2

[Event "Late-Titled-Tuesday-Blitz-December-26-2023"]
[Site "Chess.com"]
[Date "2023.12.26"]
[Round "3"]
[White "DmitryMaximov"]
[Black "DanielNaroditsky"]
[Result "1/2-1/2"]
[WhiteElo "2761"]
[BlackElo "3107"]
[TimeControl "180+1"]
[EndTime "14:29:47 PST"]
[Termination "Game drawn by repetition"]

1. e4 {[%clk 0:03:00.9]} 1... c5 {[%clk 0:02:58.7]} 2. Nf3 {[%clk 0:03:01.2]}
2... d6 {[%clk 0:02:59.3]} 3. Bb5+ {[%clk 0:03:01.4]} 3... Nd7 {[%clk
0:02:59.6]} 4. O-O {[%clk 0:03:01]} 4... a6 {[%clk 0:02:59.3]} 5. Bd3 {[%clk
0:03:01.3]} 5... Ngf6 {[%clk 0:02:58.8]} 6. Re1 {[%clk 0:03:01.8]} 6... g6
{[%clk 0:02:49.5]} 7. Bf1 {[%clk 0:03:01.6]} 7... Bg7 {[%clk 0:02:49.1]} 8. c3
{[%clk 0:03:02.1]} 8... O-O {[%clk 0:02:49.5]} 9. d4 {[%clk 0:03:02.4]} 9...
cxd4 {[%clk 0:02:46]} 10. cxd4 {[%clk 0:03:02.5]} 10... b5 {[%clk 0:02:46.8]}
11. e5 {[%clk 0:02:46.9]} 11... Nd5 {[%clk 0:02:43]} 12. exd6 {[%clk 0:02:37.5]}
12... exd6 {[%clk 0:02:41.2]} 13. Nc3 {[%clk 0:02:33.7]} 13... Bb7 {[%clk
0:02:31.5]} 14. Ne4 {[%clk 0:02:33.6]} 14... N7f6 {[%clk 0:02:26.9]} 15. Bg5
{[%clk 0:02:32.1]} 15... h6 {[%clk 0:02:27.3]} 16. Nxf6+ {[%clk 0:02:19.4]}
16... Nxf6 {[%clk 0:02:27.3]} 17. Bh4 {[%clk 0:02:17.9]} 17... Qd7 {[%clk
0:02:15.5]} 18. a4 {[%clk 0:02:04.9]} 18... Nd5 {[%clk 0:01:50.4]} 19. Bg3
{[%clk 0:01:58.6]} 19... Bc6 {[%clk 0:01:41.7]} 20. axb5 {[%clk 0:01:56.4]}
20... axb5 {[%clk 0:01:42.6]} 21. Qb3 {[%clk 0:01:55]} 21... Nf6 {[%clk
0:01:08.6]} 22. Nh4 {[%clk 0:01:34.4]} 22... Kh7 {[%clk 0:01:07.3]} 23. Rxa8
{[%clk 0:01:33.3]} 23... Rxa8 {[%clk 0:01:06]} 24. Bd3 {[%clk 0:01:15.1]} 24...
Re8 {[%clk 0:00:59.5]} 25. Rc1 {[%clk 0:01:03.5]} 25... Be4 {[%clk 0:00:41.7]}
26. Bxb5 {[%clk 0:01:00.2]} 26... Rb8 {[%clk 0:00:32.7]} 27. Bxd7 {[%clk
0:00:50.6]} 27... Rxb3 {[%clk 0:00:33.6]} 28. Ba4 {[%clk 0:00:50.8]} 28... Rb4
{[%clk 0:00:31.5]} 29. b3 {[%clk 0:00:44.6]} 29... Rxd4 {[%clk 0:00:31.3]} 30.
h3 {[%clk 0:00:44.5]} 30... Nd5 {[%clk 0:00:22]} 31. Kh2 {[%clk 0:00:38.4]}
31... Be5 {[%clk 0:00:17]} 32. Bc6 {[%clk 0:00:35]} 32... Nf6 {[%clk 0:00:11.9]}
33. Nf3 {[%clk 0:00:27]} 33... Bxg3+ {[%clk 0:00:08.9]} 34. fxg3 {[%clk
0:00:25.3]} 34... Rb4 {[%clk 0:00:08.9]} 35. Bxe4 {[%clk 0:00:16.3]} 35... Nxe4
{[%clk 0:00:09.5]} 36. Rc4 {[%clk 0:00:04.8]} 36... Rxc4 {[%clk 0:00:09.8]} 37.
bxc4 {[%clk 0:00:05.2]} 37... f5 {[%clk 0:00:08]} 38. g4 {[%clk 0:00:05.2]}
38... fxg4 {[%clk 0:00:06.2]} 39. hxg4 {[%clk 0:00:06.1]} 39... Kg7 {[%clk
0:00:04.9]} 40. Kg1 {[%clk 0:00:06]} 40... Kf6 {[%clk 0:00:04.2]} 41. Kf1 {[%clk
0:00:06.1]} 41... Ng5 {[%clk 0:00:02.8]} 42. Ke2 {[%clk 0:00:05.5]} 42... Ne6
{[%clk 0:00:02.6]} 43. Ke3 {[%clk 0:00:05.5]} 43... g5 {[%clk 0:00:03.1]} 44.
Ke4 {[%clk 0:00:05.8]} 44... Nf4 {[%clk 0:00:03.3]} 45. g3 {[%clk 0:00:06.3]}
45... Nh3 {[%clk 0:00:02.2]} 46. Kd5 {[%clk 0:00:06]} 46... Ke7 {[%clk
0:00:02.9]} 47. c5 {[%clk 0:00:05.5]} 47... dxc5 {[%clk 0:00:02.7]} 48. Ne5
{[%clk 0:00:06]} 48... Nf2 {[%clk 0:00:02.5]} 49. Kxc5 {[%clk 0:00:06.3]} 49...
Ke6 {[%clk 0:00:02.5]} 50. Kd4 {[%clk 0:00:06.4]} 50... Nh1 {[%clk 0:00:03.2]}
51. Ke4 {[%clk 0:00:05.8]} 51... Nxg3+ {[%clk 0:00:03.7]} 52. Kd4 {[%clk
0:00:05.6]} 52... Ne2+ {[%clk 0:00:04.2]} 53. Ke4 {[%clk 0:00:05.7]} 53... Nc3+
{[%clk 0:00:04.8]} 54. Kd4 {[%clk 0:00:06.1]} 54... Nb5+ {[%clk 0:00:05.5]} 55.
Ke4 {[%clk 0:00:06.6]} 55... Nd6+ {[%clk 0:00:06.3]} 56. Kd4 {[%clk 0:00:07.2]}
56... Ne8 {[%clk 0:00:06.1]} 57. Ke4 {[%clk 0:00:07.2]} 57... Nf6+ {[%clk
0:00:06.3]} 58. Kd4 {[%clk 0:00:07.8]} 58... Nh7 {[%clk 0:00:04]} 59. Ke4 {[%clk
0:00:07.7]} 59... Nf8 {[%clk 0:00:03.8]} 60. Kd4 {[%clk 0:00:07.3]} 60... Kf6
{[%clk 0:00:04.5]} 61. Ke4 {[%clk 0:00:07.4]} 61... Ne6 {[%clk 0:00:04.1]} 62.
Nd3 {[%clk 0:00:05.1]} 62... Nd8 {[%clk 0:00:03.2]} 63. Nb4 {[%clk 0:00:04.8]}
63... Ke6 {[%clk 0:00:03]} 64. Nd5 {[%clk 0:00:04.7]} 64... Nf7 {[%clk
0:00:03.6]} 65. Ne3 {[%clk 0:00:04.8]} 65... Nd6+ {[%clk 0:00:03.5]} 66. Kd4
{[%clk 0:00:05.3]} 66... Kf6 {[%clk 0:00:03.8]} 67. Kd5 {[%clk 0:00:05.6]} 67...
Nf7 {[%clk 0:00:03.5]} 68. Ke4 {[%clk 0:00:05.9]} 68... Kg6 {[%clk 0:00:02.7]}
69. Kd5 {[%clk 0:00:06.1]} 69... Kf6 {[%clk 0:00:02.6]} 70. Ke4 {[%clk
0:00:06.5]} 70... Ne5 {[%clk 0:00:03.1]} 71. Nd5+ {[%clk 0:00:06.4]} 71... Ke6
{[%clk 0:00:03.9]} 72. Nc7+ {[%clk 0:00:06.5]} 72... Kd6 {[%clk 0:00:04.6]} 73.
Nb5+ {[%clk 0:00:06.6]} 73... Ke6 {[%clk 0:00:04.2]} 74. Nc7+ {[%clk 0:00:07]}
74... Kf6 {[%clk 0:00:03.9]} 75. Nd5+ {[%clk 0:00:07.2]} 75... Ke6 {[%clk
0:00:03.5]} 76. Nc7+ {[%clk 0:00:07.8]} 1/2-1/2

[Event "Late-Titled-Tuesday-Blitz-December-26-2023"]
[Site "Chess.com"]
[Date "2023.12.26"]
[Round "3"]
[White "enriquetejedor"]
[Black "koncheto"]
[Result "1/2-1/2"]
[WhiteElo "2751"]
[BlackElo "2533"]
[TimeControl "180+1"]
[EndTime "14:29:52 PST"]
[Termination "Game drawn - insufficient material"]

1. d4 {[%clk 0:02:52.8]} 1... Nf6 {[%clk 0:02:59.9]} 2. c4 {[%clk 0:02:50.9]}
2... e6 {[%clk 0:03:00.3]} 3. Nf3 {[%clk 0:02:50.3]} 3... c5 {[%clk 0:03:00.7]}
4. e3 {[%clk 0:02:48.8]} 4... cxd4 {[%clk 0:02:56.6]} 5. exd4 {[%clk 0:02:49.7]}
5... d5 {[%clk 0:02:56.6]} 6. Nc3 {[%clk 0:02:48.9]} 6... Be7 {[%clk 0:02:54]}
7. Bd3 {[%clk 0:02:47.6]} 7... dxc4 {[%clk 0:02:53.6]} 8. Bxc4 {[%clk
0:02:48.4]} 8... O-O {[%clk 0:02:52.1]} 9. O-O {[%clk 0:02:49]} 9... Nc6 {[%clk
0:02:48.8]} 10. a3 {[%clk 0:02:49.5]} 10... b6 {[%clk 0:02:47.1]} 11. Bf4 {[%clk
0:02:45.2]} 11... Bb7 {[%clk 0:02:46.8]} 12. Re1 {[%clk 0:02:44.4]} 12... Na5
{[%clk 0:02:22.9]} 13. Ba2 {[%clk 0:02:43.7]} 13... Nd5 {[%clk 0:02:22.6]} 14.
Bd2 {[%clk 0:02:26.7]} 14... Rc8 {[%clk 0:02:17.9]} 15. Qe2 {[%clk 0:02:21]}
15... Nxc3 {[%clk 0:01:39.8]} 16. Bxc3 {[%clk 0:02:21.9]} 16... Bd5 {[%clk
0:01:40.4]} 17. Bxa5 {[%clk 0:02:09.3]} 17... bxa5 {[%clk 0:01:33.7]} 18. Bxd5
{[%clk 0:02:08.6]} 18... Qxd5 {[%clk 0:01:29.5]} 19. Rac1 {[%clk 0:02:09.5]}
19... Bf6 {[%clk 0:01:23.2]} 20. Rcd1 {[%clk 0:01:43.8]} 20... Rc4 {[%clk
0:01:17.1]} 21. Rd2 {[%clk 0:01:40]} 21... Rfc8 {[%clk 0:01:10.8]} 22. Red1
{[%clk 0:01:27.2]} 22... g6 {[%clk 0:01:08.6]} 23. h3 {[%clk 0:01:19.4]} 23...
Kg7 {[%clk 0:01:04.7]} 24. Qd3 {[%clk 0:01:10.7]} 24... a4 {[%clk 0:00:58.1]}
25. Qe2 {[%clk 0:01:05.5]} 25... Rc1 {[%clk 0:00:53]} 26. Rxc1 {[%clk
0:01:00.6]} 26... Rxc1+ {[%clk 0:00:52.4]} 27. Kh2 {[%clk 0:01:01.5]} 27... h5
{[%clk 0:00:47.3]} 28. h4 {[%clk 0:00:57.4]} 28... Qd6+ {[%clk 0:00:42.1]} 29.
g3 {[%clk 0:00:57]} 29... Qc6 {[%clk 0:00:41]} 30. d5 {[%clk 0:00:39]} 30...
exd5 {[%clk 0:00:37.5]} 31. Nd4 {[%clk 0:00:39.4]} 31... Qd6 {[%clk 0:00:28.5]}
32. Kg2 {[%clk 0:00:30.4]} 32... Rc4 {[%clk 0:00:26]} 33. Qxc4 {[%clk
0:00:13.3]} 33... dxc4 {[%clk 0:00:26.3]} 34. Nf5+ {[%clk 0:00:13.4]} 34... gxf5
{[%clk 0:00:27.2]} 35. Rxd6 {[%clk 0:00:13.7]} 35... Bxb2 {[%clk 0:00:28]} 36.
Rc6 {[%clk 0:00:12.3]} 36... c3 {[%clk 0:00:27.4]} 37. Kf3 {[%clk 0:00:11.8]}
37... Bxa3 {[%clk 0:00:12.6]} 38. Rxc3 {[%clk 0:00:11]} 38... Bb2 {[%clk
0:00:12.2]} 39. Rc4 {[%clk 0:00:07.3]} 39... a3 {[%clk 0:00:10.2]} 40. Ra4
{[%clk 0:00:07]} 40... Kf6 {[%clk 0:00:09.7]} 41. Rxa7 {[%clk 0:00:06.3]} 41...
Ke5 {[%clk 0:00:10.3]} 42. Ra4 {[%clk 0:00:05.6]} 42... Kd5 {[%clk 0:00:08.2]}
43. Kf4 {[%clk 0:00:05.8]} 43... Ke6 {[%clk 0:00:08.4]} 44. Ra6+ {[%clk
0:00:05.2]} 44... Kd5 {[%clk 0:00:07.5]} 45. Kxf5 {[%clk 0:00:05.4]} 45... Kc4
{[%clk 0:00:08.1]} 46. Kg5 {[%clk 0:00:05]} 46... Kb3 {[%clk 0:00:08.5]} 47.
Kxh5 {[%clk 0:00:04.6]} 47... a2 {[%clk 0:00:09]} 48. Rxa2 {[%clk 0:00:04]}
48... Kxa2 {[%clk 0:00:09.9]} 49. Kg5 {[%clk 0:00:02.3]} 49... Kb3 {[%clk
0:00:10.4]} 50. h5 {[%clk 0:00:02.1]} 50... Kc4 {[%clk 0:00:10.9]} 51. Kf5
{[%clk 0:00:02.5]} 51... Kd5 {[%clk 0:00:11.2]} 52. f4 {[%clk 0:00:02.7]} 52...
Kd6 {[%clk 0:00:11.2]} 53. g4 {[%clk 0:00:02.6]} 53... Ke7 {[%clk 0:00:11.6]}
54. g5 {[%clk 0:00:02.5]} 54... Kf8 {[%clk 0:00:11.8]} 55. h6 {[%clk 0:00:02.6]}
55... Bc1 {[%clk 0:00:08.5]} 56. Kg4 {[%clk 0:00:03.5]} 56... Kg8 {[%clk
0:00:08.4]} 57. Kf5 {[%clk 0:00:03.5]} 57... Bd2 {[%clk 0:00:07.5]} 58. Ke4
{[%clk 0:00:03.6]} 58... Kh7 {[%clk 0:00:07.5]} 59. Kf5 {[%clk 0:00:03.9]} 59...
Bc1 {[%clk 0:00:07.2]} 60. Kg4 {[%clk 0:00:04.1]} 60... Kg6 {[%clk 0:00:06.9]}
61. f5+ {[%clk 0:00:04.4]} 61... Kh7 {[%clk 0:00:07.2]} 62. Kh5 {[%clk
0:00:05.3]} 62... Bd2 {[%clk 0:00:05.8]} 63. Kh4 {[%clk 0:00:05.3]} 63... Be1+
{[%clk 0:00:05.3]} 64. Kg4 {[%clk 0:00:05.1]} 64... Kg8 {[%clk 0:00:05.5]} 65.
Kh5 {[%clk 0:00:04.9]} 65... Bd2 {[%clk 0:00:05.6]} 66. Kg4 {[%clk 0:00:03.2]}
66... Kf8 {[%clk 0:00:05.6]} 67. Kh4 {[%clk 0:00:03.4]} 67... Be1+ {[%clk
0:00:05.6]} 68. Kh5 {[%clk 0:00:03.6]} 68... Bd2 {[%clk 0:00:06.5]} 69. f6
{[%clk 0:00:03.9]} 69... Kg8 {[%clk 0:00:06.9]} 70. g6 {[%clk 0:00:04.2]} 70...
fxg6+ {[%clk 0:00:06.7]} 71. Kxg6 {[%clk 0:00:05.1]} 71... Bxh6 {[%clk
0:00:06.8]} 72. Kxh6 {[%clk 0:00:05.1]} 72... Kf7 {[%clk 0:00:07.7]} 73. Kg5
{[%clk 0:00:05.6]} 73... Kf8 {[%clk 0:00:07.6]} 74. Kg4 {[%clk 0:00:05.5]} 74...
Kf7 {[%clk 0:00:07.7]} 75. Kf5 {[%clk 0:00:06.1]} 75... Kf8 {[%clk 0:00:07.9]}
76. Ke5 {[%clk 0:00:06.7]} 76... Kf7 {[%clk 0:00:08.2]} 77. Kf4 {[%clk
0:00:06.9]} 77... Kxf6 {[%clk 0:00:08.4]} 1/2-1/2

[Event "Late-Titled-Tuesday-Blitz-December-26-2023"]
[Site "Chess.com"]
[Date "2023.12.26"]
[Round "3"]
[White "staz_staz"]
[Black "PushingpawnsNYC"]
[Result "0-1"]
[WhiteElo "2253"]
[BlackElo "2496"]
[TimeControl "180+1"]
[EndTime "14:29:53 PST"]
[Termination "PushingpawnsNYC won by resignation"]

1. d4 {[%clk 0:03:00.9]} 1... e6 {[%clk 0:02:35.2]} 2. Nf3 {[%clk 0:02:57.4]}
2... d5 {[%clk 0:02:35.6]} 3. c4 {[%clk 0:02:56.2]} 3... Nf6 {[%clk 0:02:35.4]}
4. Bg5 {[%clk 0:02:52.1]} 4... Be7 {[%clk 0:02:35.8]} 5. Nc3 {[%clk 0:02:49.8]}
5... O-O {[%clk 0:02:32.4]} 6. e3 {[%clk 0:02:48.6]} 6... Nbd7 {[%clk
0:02:17.7]} 7. Bd3 {[%clk 0:02:44.1]} 7... dxc4 {[%clk 0:02:07.3]} 8. Bxc4
{[%clk 0:02:44.2]} 8... c5 {[%clk 0:02:08.2]} 9. O-O {[%clk 0:02:37.1]} 9... b6
{[%clk 0:01:57.1]} 10. Rc1 {[%clk 0:02:33.7]} 10... Bb7 {[%clk 0:01:55.5]} 11.
Qe2 {[%clk 0:02:19.6]} 11... Ne4 {[%clk 0:01:42.8]} 12. Bf4 {[%clk 0:01:57.6]}
12... Ndf6 {[%clk 0:01:31.6]} 13. Rfd1 {[%clk 0:01:53.6]} 13... Nxc3 {[%clk
0:01:11.4]} 14. bxc3 {[%clk 0:01:49.8]} 14... Qc8 {[%clk 0:01:02.6]} 15. Bd3
{[%clk 0:01:33.6]} 15... Ne4 {[%clk 0:00:47.8]} 16. Ne5 {[%clk 0:01:13.1]} 16...
f5 {[%clk 0:00:46]} 17. f3 {[%clk 0:00:53.7]} 17... Nf6 {[%clk 0:00:45.3]} 18.
e4 {[%clk 0:00:44.2]} 18... fxe4 {[%clk 0:00:42.5]} 19. fxe4 {[%clk 0:00:43.7]}
19... Nxe4 {[%clk 0:00:40.9]} 20. Bxe4 {[%clk 0:00:23.1]} 20... Rxf4 {[%clk
0:00:38.6]} 21. Bxb7 {[%clk 0:00:18.2]} 21... Qxb7 {[%clk 0:00:39.5]} 22. Rf1
{[%clk 0:00:16.2]} 22... Raf8 {[%clk 0:00:38]} 23. Rxf4 {[%clk 0:00:16.4]} 23...
Rxf4 {[%clk 0:00:38.8]} 24. Rf1 {[%clk 0:00:16]} 24... Rf6 {[%clk 0:00:38.3]}
25. Qh5 {[%clk 0:00:09.7]} 25... g6 {[%clk 0:00:32.4]} 26. Qh3 {[%clk
0:00:09.7]} 26... Qd5 {[%clk 0:00:29.3]} 27. Qe3 {[%clk 0:00:04.3]} 27... cxd4
{[%clk 0:00:24.9]} 28. cxd4 {[%clk 0:00:04]} 28... Rxf1+ {[%clk 0:00:23.9]} 29.
Kxf1 {[%clk 0:00:04.9]} 29... Bf6 {[%clk 0:00:22.2]} 30. Nf3 {[%clk 0:00:03]}
30... Qxa2 {[%clk 0:00:20.5]} 31. h3 {[%clk 0:00:03.3]} 31... Qb1+ {[%clk
0:00:18.6]} 32. Kf2 {[%clk 0:00:03.7]} 32... Qf5 {[%clk 0:00:19.5]} 33. Kg1
{[%clk 0:00:03.8]} 33... Qd5 {[%clk 0:00:19.4]} 34. g4 {[%clk 0:00:03.6]} 34...
b5 {[%clk 0:00:19.5]} 35. g5 {[%clk 0:00:04]} 35... Bg7 {[%clk 0:00:19.5]} 36.
Qf4 {[%clk 0:00:04.5]} 36... b4 {[%clk 0:00:17.9]} 37. Qb8+ {[%clk 0:00:04.8]}
37... Bf8 {[%clk 0:00:18]} 38. Qf4 {[%clk 0:00:04.5]} 38... Qf5 {[%clk
0:00:17.3]} 39. Qe3 {[%clk 0:00:04]} 39... Qb1+ {[%clk 0:00:15.4]} 40. Kg2
{[%clk 0:00:04.1]} 40... Qa2+ {[%clk 0:00:14.6]} 41. Kg3 {[%clk 0:00:04.5]}
41... Qd5 {[%clk 0:00:13.7]} 42. Qf4 {[%clk 0:00:04]} 42... Bd6 {[%clk
0:00:12.9]} 43. Ne5 {[%clk 0:00:04.5]} 43... Bxe5 {[%clk 0:00:12.9]} 44. dxe5
{[%clk 0:00:05.4]} 44... b3 {[%clk 0:00:13]} 45. Qb4 {[%clk 0:00:04.6]} 45...
Qd3+ {[%clk 0:00:12.2]} 46. Kf2 {[%clk 0:00:04.6]} 46... Qc2+ {[%clk 0:00:11.9]}
47. Ke3 {[%clk 0:00:04.5]} 47... Qc1+ {[%clk 0:00:10.5]} 48. Kd3 {[%clk
0:00:04.9]} 48... b2 {[%clk 0:00:10.6]} 49. Qb8+ {[%clk 0:00:05]} 49... Kf7
{[%clk 0:00:09.8]} 50. Qb7+ {[%clk 0:00:05.6]} 50... Ke8 {[%clk 0:00:10.3]} 51.
Qb8+ {[%clk 0:00:06.2]} 51... Kd7 {[%clk 0:00:10.8]} 52. Qb7+ {[%clk 0:00:06.4]}
52... Kd8 {[%clk 0:00:11.2]} 53. Qb8+ {[%clk 0:00:06.4]} 53... Kd7 {[%clk
0:00:11.4]} 54. Qb7+ {[%clk 0:00:06.7]} 54... Qc7 {[%clk 0:00:11.1]} 55. Qxb2
{[%clk 0:00:06.6]} 55... Qb6 {[%clk 0:00:11.1]} 56. Qc3 {[%clk 0:00:06.6]} 56...
Qb5+ {[%clk 0:00:10.5]} 57. Ke4 {[%clk 0:00:06.5]} 57... a5 {[%clk 0:00:10.1]}
58. Qd4+ {[%clk 0:00:06.4]} 58... Ke8 {[%clk 0:00:08.6]} 59. Qd6 {[%clk
0:00:06.1]} 59... Qb7+ {[%clk 0:00:04.8]} 60. Ke3 {[%clk 0:00:06]} 60... Qb3+
{[%clk 0:00:04.2]} 61. Ke4 {[%clk 0:00:05.8]} 61... a4 {[%clk 0:00:04.7]} 62.
Qc6+ {[%clk 0:00:05.1]} 62... Kd8 {[%clk 0:00:04.4]} 63. Qd6+ {[%clk 0:00:05.3]}
63... Kc8 {[%clk 0:00:04.8]} 64. Qc6+ {[%clk 0:00:05.9]} 64... Kb8 {[%clk
0:00:05.1]} 65. Qd6+ {[%clk 0:00:06.3]} 65... Ka7 {[%clk 0:00:05.3]} 66. Qc7+
{[%clk 0:00:06.7]} 66... Ka6 {[%clk 0:00:05.4]} 67. Qc8+ {[%clk 0:00:06.4]}
67... Ka5 {[%clk 0:00:04.9]} 68. Qc7+ {[%clk 0:00:06.6]} 68... Kb4 {[%clk
0:00:05.3]} 69. Qb6+ {[%clk 0:00:06.8]} 69... Ka3 {[%clk 0:00:05.7]} 70. Qc5+
{[%clk 0:00:07.4]} 70... Ka2 {[%clk 0:00:05.9]} 71. Qa5 {[%clk 0:00:05.9]} 71...
a3 {[%clk 0:00:05.5]} 72. Kd4 {[%clk 0:00:04.8]} 72... Qb2+ {[%clk 0:00:04.2]}
73. Kc5 {[%clk 0:00:05.2]} 73... Kb1 {[%clk 0:00:04.6]} 74. Qe1+ {[%clk
0:00:05.2]} 74... Qc1+ {[%clk 0:00:04.7]} 75. Qxc1+ {[%clk 0:00:04.1]} 75...
Kxc1 {[%clk 0:00:05.6]} 0-1